lending/lending_fUSD_20250425
["ID","MTS","AMOUNT","RATE_DAILY","PERIOD"]
[358971604,1745596248551,-500.0,0.00035616,2]
[358971606,1745596248561,-500.0,0.00035616,2]
[358971608,1745596248572,-151.0,0.00035616,30]
[358971610,1745596248581,-235.33061585,0.00035616,30]
[358971612,1745596248591,-919.43,0.00035616,2]
[358971614,1745596248600,-618.76,0.00035616,2]
[358971616,1745596248611,-1883.46,0.00035616,2]
[358971618,1745596248621,-500.0,0.00035616,2]
[358971620,1745596248631,-500.0,0.00035616,2]
[358971622,1745596248640,-500.0,0.00035616,2]
[358971624,1745596248650,-500.0,0.00035616,2]
[358971626,1745596248660,-614.63,0.00035616,2]
[358971628,1745596248671,-500.0,0.00035616,2]
[358971630,1745596248681,-514.31014724,0.00035616,2]
[358971632,1745596248697,-832.02,0.00035616,2]
[358971634,1745596248708,-500.0,0.00035616,2]
[358971636,1745596248718,-500.0,0.00035616,2]
[358971638,1745596248728,-500.0,0.00035616,2]
[358971640,1745596248738,-502.17,0.00035616,2]
[358971642,1745596248748,-500.0,0.00035616,2]
[358971644,1745596248759,-500.0,0.00035616,2]
[358971646,1745596248770,-500.0,0.00035616,2]
[358971648,1745596248780,-513.8382107,0.00035616,2]
[358971650,1745596248790,-500.0,0.00035616,2]
[358971653,1745596248801,-639.36,0.00035616,2]
[358971655,1745596248811,-500.0,0.00035616,2]
[358971657,1745596248821,-1006.73,0.00035616,2]
[358971659,1745596248830,-500.0,0.00035616,2]
[358971661,1745596248840,-500.0,0.00035616,2]
[358971663,1745596248850,-500.0,0.00035616,2]
[358971665,1745596248859,-500.0,0.00035616,2]
[358971666,1745596248869,-531.43149761,0.00035616,2]
[358971668,1745596248879,-500.0,0.00035616,2]
[358971670,1745596248888,-500.0,0.00035616,2]
[358971672,1745596248898,-500.0,0.00035616,2]
[358971674,1745596248908,-530.27331446,0.00035616,2]
[358971676,1745596248919,-1041.99,0.00035616,2]
[358971679,1745596248929,-776.41,0.00035616,2]
[358971681,1745596248939,-500.0,0.00035616,2]
[358971683,1745596248949,-1081.14,0.00035616,2]
[358971685,1745596248959,-570.55300334,0.00035616,2]
[358971686,1745596248970,-500.0,0.00035616,2]
[358971688,1745596248980,-500.0,0.00035616,2]
[358971691,1745596248990,-525.89,0.00035616,2]
[358971693,1745596249001,-500.0,0.00035616,2]
[358971695,1745596249012,-524.24,0.00035616,2]
[358971697,1745596249022,-500.0,0.00035616,2]
[358971699,1745596249032,-500.0,0.00035616,2]
[358971701,1745596249041,-542.14184706,0.00035616,2]
[358971703,1745596249051,-500.0,0.00035616,2]
[358971705,1745596249061,-500.0,0.00035616,2]
[358971707,1745596249070,-532.80945532,0.00035616,2]
[358971709,1745596249080,-500.0,0.00035616,2]
[358971711,1745596249090,-500.0,0.00035616,2]
[358971713,1745596249099,-563.92463906,0.00035616,2]
[358971715,1745596249108,-500.0,0.00035616,2]
[358971717,1745596249118,-500.0,0.00035616,2]
[358971719,1745596249127,-500.0,0.00035616,2]
[358971721,1745596249137,-504.39,0.00035616,2]
[358971723,1745596249147,-500.0,0.00035616,2]
[358971725,1745596249157,-561.74,0.00035616,2]
[358971727,1745596249168,-500.0,0.00035616,2]
[358971729,1745596249178,-500.0,0.00035616,2]
[358971731,1745596249187,-920.21,0.00035616,2]
[358971732,1745596249196,-574.02938754,0.00035616,2]
[358971734,1745596249206,-500.0,0.00035616,2]
[358971737,1745596249216,-500.0,0.00035616,2]
[358971738,1745596249226,-813.0,0.00035616,2]
[358971741,1745596249235,-500.0,0.00035616,2]
[358971743,1745596249245,-1015.4,0.00035616,2]
[358971745,1745596249254,-500.0,0.00035616,2]
[358971747,1745596249264,-500.0,0.00035616,2]
[358971749,1745596249275,-500.0,0.00035616,2]
[358971751,1745596249285,-500.0,0.00035616,2]
[358971753,1745596249294,-500.0,0.00035616,2]
[358971755,1745596249303,-500.0,0.00035616,2]
[358971757,1745596249313,-521.17978049,0.00035616,2]
[358971759,1745596249323,-547.61,0.00035616,2]
[358971761,1745596249333,-500.0,0.00035616,2]
[358971763,1745596249343,-500.0,0.00035616,2]
[358971765,1745596249352,-641.3,0.00035616,2]
[358971767,1745596249362,-500.0,0.00035616,2]
[358971769,1745596249372,-500.0,0.00035616,2]
[358971771,1745596249382,-531.01875514,0.00035616,2]
[358971773,1745596249392,-500.0,0.00035616,2]
[358971775,1745596249401,-500.0,0.00035616,2]
[358971777,1745596249411,-500.0,0.00035616,2]
[358971779,1745596249423,-500.0,0.00035616,2]
[358971781,1745596249432,-734.2,0.00035616,2]
[358971783,1745596249442,-500.0,0.00035616,2]
[358971785,1745596249452,-1041.16,0.00035616,2]
[358971787,1745596249461,-516.33929706,0.00035616,2]
[358971789,1745596249471,-500.0,0.00035616,2]
[358971791,1745596249480,-500.0,0.00035616,2]
[358971793,1745596249491,-910.03,0.00035616,2]
[358971795,1745596249501,-500.0,0.00035616,2]
[358971797,1745596249511,-998.14,0.00035616,2]
[358971799,1745596249523,-262.30899233,0.00035616,2]
[358971801,1745596249532,-500.0,0.00035616,2]
[358971803,1745596249541,-500.0,0.00035616,2]
[358971805,1745596249551,-500.0,0.00035616,2]
[358971807,1745596249560,-1039.58,0.00035616,2]
[358971809,1745596249570,-500.0,0.00035616,2]
[358971811,1745596249579,-500.0,0.00035616,2]
[358971813,1745596249589,-679.77,0.00035616,2]
[358971815,1745596249598,-500.0,0.00035616,2]
[358971817,1745596249608,-2000.0,0.00035616,2]
[358971819,1745596249617,-500.0,0.00035616,2]
[358971821,1745596249627,-500.0,0.00035616,2]
[358971824,1745596249637,-500.0,0.00035616,2]
[358971826,1745596249647,-2000.0,0.00035616,2]
[358971828,1745596249656,-1023.59,0.00035616,2]
[358971830,1745596249666,-2000.0,0.00035616,2]
[358971832,1745596249678,-2000.0,0.00035616,2]
[358971834,1745596249689,-780.74,0.00035616,2]
[358971835,1745596249698,-500.0,0.00035616,2]
[358971837,1745596249708,-2000.0,0.00035616,2]
[358971839,1745596249718,-500.0,0.00035616,2]
[358971841,1745596249727,-2000.0,0.00035616,2]
[358971843,1745596249737,-553.9,0.00035616,2]
[358971846,1745596249747,-2000.0,0.00035616,2]
[358971848,1745596249756,-967.82,0.00035616,2]
[358971850,1745596249767,-2000.0,0.00035616,2]
[358971852,1745596249778,-2000.0,0.00035616,2]
[358971854,1745596249788,-2000.0,0.00035616,2]
[358971856,1745596249797,-2000.0,0.00035616,2]
[358971858,1745596249807,-1331.65186375,0.00035616,2]
[358971860,1745596249816,-538.09977851,0.00035616,2]
[358971862,1745596249825,-500.0,0.00035616,2]
[358971864,1745596249835,-500.0,0.00035616,2]
[358971866,1745596249844,-500.0,0.00035616,2]
[358971868,1745596249854,-530.8658182,0.00035616,2]
[358971870,1745596249863,-500.0,0.00035616,2]
[358971871,1745596249872,-500.0,0.00035616,2]
[358971873,1745596249882,-538.553582,0.00035616,2]
[358971875,1745596249891,-500.0,0.00035616,2]
[358971877,1745596249901,-500.0,0.00035616,2]
[358971879,1745596249910,-720.56,0.00035616,2]
[358971881,1745596249921,-677.72,0.00035616,2]
[358971883,1745596249931,-867.65,0.00035616,2]
[358971885,1745596249940,-500.0,0.00035616,2]
[358971887,1745596249950,-510.55729179,0.00035616,2]
[358971889,1745596249959,-560.9618911,0.00035616,2]
[358971891,1745596249969,-500.0,0.00035616,2]
[358971893,1745596249980,-500.0,0.00035616,2]
[358971895,1745596249990,-1380.14,0.00035616,2]
[358971898,1745596250000,-500.0,0.00035616,2]
[358971899,1745596250009,-628.24,0.00035616,2]
[358971902,1745596250018,-500.0,0.00035616,2]
[358971904,1745596250028,-500.0,0.00035616,2]
[358971906,1745596250039,-543.03,0.00035616,2]
[358971908,1745596250048,-500.0,0.00035616,2]
[358971909,1745596250058,-500.0,0.00035616,2]
[358971911,1745596250067,-1490.79,0.00035616,2]
[358971914,1745596250077,-621.19,0.00035616,2]
[358971916,1745596250086,-1039.65,0.00035616,2]
[358971918,1745596250096,-1070.43,0.00035616,2]
[358971920,1745596250105,-500.0,0.00035616,2]
[358971921,1745596250115,-901.1,0.00035616,2]
[358971924,1745596250125,-500.0,0.00035616,2]
[358971926,1745596250134,-500.0,0.00035616,2]
[358971927,1745596250144,-792.81,0.00035616,2]
[358971953,1745596250389,-500.0,0.00035616,2]
[358971955,1745596250400,-1130.96,0.00035616,2]
[358971957,1745596250410,-500.0,0.00035616,2]
[358971959,1745596250420,-500.0,0.00035616,2]
[358971961,1745596250430,-678.72,0.00035616,2]
[358971964,1745596250440,-1896.88,0.00035616,2]
[358971966,1745596250450,-500.0,0.00035616,2]
[358971968,1745596250460,-500.0,0.00035616,2]
[358971970,1745596250470,-500.0,0.00035616,2]
[358971972,1745596250480,-500.0,0.00035616,2]
[358971974,1745596250490,-892.08,0.00035616,2]
[358971976,1745596250501,-1047.18,0.00035616,2]
[358971978,1745596250510,-500.0,0.00035616,2]
[358971980,1745596250520,-500.0,0.00035616,2]
[358971982,1745596250529,-500.0,0.00035616,2]
[358971984,1745596250538,-944.88,0.00035616,2]
[358971985,1745596250548,-513.65343823,0.00035616,2]
[358971986,1745596250557,-1644.58,0.00035616,2]
[358971987,1745596250567,-805.12,0.00035616,2]
[358971988,1745596250577,-500.0,0.00035616,2]
[358971989,1745596250588,-500.0,0.00035616,2]
[358971990,1745596250598,-500.0,0.00035616,2]
[358971991,1745596250608,-500.0,0.00035616,2]
[358971992,1745596250618,-908.0,0.00035616,2]
[358971993,1745596250628,-500.0,0.00035616,2]
[358971994,1745596250638,-580.09949709,0.00035616,2]
[358971995,1745596250647,-990.31,0.00035616,2]
[358971996,1745596250657,-500.0,0.00035616,2]
[358971997,1745596250667,-500.0,0.00035616,2]
[358971999,1745596250679,-500.0,0.00035616,2]
[358972000,1745596250691,-961.57,0.00035616,2]
[358972002,1745596250700,-500.0,0.00035616,2]
[358972004,1745596250711,-500.0,0.00035616,2]
[358972007,1745596250721,-500.0,0.00035616,2]
[358972008,1745596250732,-500.0,0.00035616,2]
[358972010,1745596250742,-500.0,0.00035616,2]
[358972012,1745596250751,-500.0,0.00035616,2]
[358972014,1745596250760,-500.0,0.00035616,2]
[358972016,1745596250772,-500.0,0.00035616,2]
[358972018,1745596250783,-500.0,0.00035616,2]
[358972021,1745596250792,-1067.43,0.00035616,2]
[358972022,1745596250802,-500.0,0.00035616,2]
[358972025,1745596250811,-260.01884086,0.00035616,2]
[358972027,1745596250821,-592.2357426,0.00035616,2]
[358972029,1745596250831,-664.69,0.00035616,2]
[358972031,1745596250841,-500.0,0.00035616,2]
[358972033,1745596250851,-500.0,0.00035616,2]
[358972034,1745596250860,-500.0,0.00035616,2]
[358972036,1745596250870,-500.0,0.00035616,2]
[358972038,1745596250879,-500.0,0.00035616,2]
[358972040,1745596250888,-938.9,0.00035616,2]
[358972043,1745596250898,-500.0,0.00035616,2]
[358972045,1745596250908,-628.01,0.00035616,2]
[358972047,1745596250918,-500.0,0.00035616,2]
[358972049,1745596250929,-500.0,0.00035616,2]
[358972051,1745596250939,-500.0,0.00035616,2]
[358972053,1745596250948,-550.18807569,0.00035616,2]
[358972055,1745596250959,-5151.24,0.00035616,2]
[358972057,1745596250969,-589.84,0.00035616,2]
[358972059,1745596250978,-500.0,0.00035616,2]
[358972061,1745596250987,-554.28,0.00035616,2]
[358972063,1745596250996,-511.04,0.00035616,2]
[358972065,1745596251006,-618.99826618,0.00035616,2]
[358972067,1745596251016,-524.27557523,0.00035616,2]
[358972069,1745596251025,-552.46,0.00035616,2]
[358972071,1745596251035,-500.0,0.00035616,2]
[358972073,1745596251044,-500.0,0.00035616,2]
[358972075,1745596251055,-500.0,0.00035616,2]
[358972077,1745596251064,-500.0,0.00035616,2]
[358972079,1745596251074,-528.69857189,0.00035616,2]
[358972081,1745596251084,-500.0,0.00035616,2]
[358972083,1745596251094,-534.46515515,0.00035616,2]
[358972085,1745596251104,-500.0,0.00035616,2]
[358972087,1745596251113,-513.38316402,0.00035616,2]
[358972089,1745596251123,-576.34,0.00035616,2]
[358972091,1745596251132,-1098.2,0.00035616,2]
[358972093,1745596251142,-722.83,0.00035616,2]
[358972095,1745596251153,-500.0,0.00035616,2]
[358972097,1745596251163,-731.89,0.00035616,2]
[358972099,1745596251179,-523.65395542,0.00035616,2]
[358972101,1745596251189,-4667.56,0.00035616,2]
[358972104,1745596251199,-1379.87,0.00035616,2]
[358972105,1745596251208,-700.0,0.00035616,13]
[358972108,1745596251218,-500.0,0.00035616,2]
[358972110,1745596251228,-700.0,0.00035616,13]
[358972112,1745596251238,-700.0,0.00035616,13]
[358972114,1745596251248,-700.0,0.00035616,13]
[358972116,1745596251258,-530.62037653,0.00035616,2]
[358972118,1745596251267,-700.0,0.00035616,13]
[358972120,1745596251277,-500.0,0.00035616,2]
[358972122,1745596251287,-1079.43,0.00035616,2]
[358972124,1745596251296,-500.0,0.00035616,2]
[358972125,1745596251306,-527.43,0.00035616,2]
[358972127,1745596251316,-500.0,0.00035616,2]
[358972130,1745596251328,-934.16,0.00035616,2]
[358972132,1745596251338,-500.0,0.00035616,2]
[358972134,1745596251347,-700.32,0.00035616,2]
[358972136,1745596251357,-500.0,0.00035616,2]
[358972138,1745596251367,-500.0,0.00035616,2]
[358972140,1745596251377,-537.02131556,0.00035616,2]
[358972142,1745596251386,-810.22,0.00035616,2]
[358972144,1745596251396,-826.01,0.00035616,2]
[358972146,1745596251405,-541.38962761,0.00035616,2]
[358972148,1745596251416,-500.0,0.00035616,2]
[358972150,1745596251429,-424.57571957,0.00035616,2]
[358972152,1745596251439,-671.87,0.00035616,2]
[358972154,1745596251449,-532.42338561,0.00035616,2]
[358972156,1745596251460,-500.0,0.00035616,2]
[358972158,1745596251469,-500.0,0.00035616,2]
[358972160,1745596251480,-598.47599956,0.00035616,2]
[358972162,1745596251491,-715.87,0.00035616,2]
[358972164,1745596251502,-569.59057456,0.00035616,2]
[358972166,1745596251511,-1340.27,0.00035616,2]
[358972168,1745596251521,-500.0,0.00035616,2]
[358972170,1745596251531,-500.36,0.00035616,2]
[358972172,1745596251543,-1855.36,0.00035616,2]
[358972174,1745596251552,-500.0,0.00035616,2]
[358972176,1745596251562,-791.02,0.00035616,2]
[358972179,1745596251573,-522.58286929,0.00035616,2]
[358972180,1745596251583,-500.0,0.00035616,2]
[358972182,1745596251592,-838.71,0.00035616,2]
[358972184,1745596251602,-686.15,0.00035616,2]
[358972187,1745596251612,-500.0,0.00035616,2]
[358972189,1745596251622,-519.06923262,0.00035616,2]
[358972191,1745596251632,-500.0,0.00035616,2]
[358972193,1745596251642,-607.37,0.00035616,2]
[358972194,1745596251652,-500.0,0.00035616,2]
[358972196,1745596251662,-500.0,0.00035616,2]
[358972198,1745596251677,-500.0,0.00035616,2]
[358972200,1745596251689,-500.0,0.00035616,2]
[358972203,1745596251699,-546.19407121,0.00035616,2]
[358972205,1745596251710,-500.0,0.00035616,2]
[358972207,1745596251720,-1088.66,0.00035616,2]
[358972209,1745596251730,-500.0,0.00035616,2]
[358972211,1745596251739,-500.0,0.00035616,2]
[358972213,1745596251749,-389.62,0.00035616,2]
[358972215,1745596251760,-500.0,0.00035616,2]
[358972217,1745596251770,-663.01,0.00035616,2]
[358972219,1745596251781,-526.2759447,0.00035616,2]
[358972221,1745596251792,-1127.17,0.00035616,2]
[358972223,1745596251800,-500.0,0.00035616,2]
[358972225,1745596251810,-500.0,0.00035616,2]
[358972226,1745596251819,-500.0,0.00035616,2]
[358972228,1745596251831,-950.73,0.00035616,2]
[358972231,1745596251840,-500.0,0.00035616,2]
[358972233,1745596251850,-500.0,0.00035616,2]
[358972234,1745596251860,-500.0,0.00035616,2]
[358972237,1745596251871,-793.61,0.00035616,2]
[358972239,1745596251881,-500.0,0.00035616,2]
[358972241,1745596251890,-500.0,0.00035616,2]
[358972242,1745596251900,-500.0,0.00035616,2]
[358972244,1745596251910,-832.47,0.00035616,2]
[358972247,1745596251923,-500.0,0.00035616,2]
[358972249,1745596251932,-500.0,0.00035616,2]
[358972250,1745596251942,-889.24,0.00035616,2]
[358972253,1745596251952,-500.0,0.00035616,2]
[358972255,1745596251962,-500.0,0.00035616,2]
[358972257,1745596251978,-510.86660988,0.00035616,2]
[358972261,1745596252001,-500.0,0.00035616,2]
[358972263,1745596252017,-1005.34,0.00035616,2]
[358972266,1745596252038,-500.0,0.00035616,2]
[358972270,1745596252058,-500.0,0.00035616,2]
[358972272,1745596252075,-943.63,0.00035616,2]
[358972275,1745596252091,-500.0,0.00035616,2]
[358972278,1745596252111,-513.48059467,0.00035616,2]
[358972281,1745596252130,-500.0,0.00035616,2]
[358972284,1745596252149,-500.0,0.00035616,2]
[358972287,1745596252167,-500.0,0.00035616,2]
[358972290,1745596252188,-500.0,0.00035616,2]
[358972293,1745596252207,-912.48,0.00035616,2]
[358972295,1745596252223,-500.0,0.00035616,2]
[358972298,1745596252242,-500.0,0.00035616,2]
[358972301,1745596252259,-500.0,0.00035616,2]
[358972304,1745596252273,-964.88,0.00035616,2]
[358972307,1745596252295,-500.0,0.00035616,2]
[358972309,1745596252307,-150.0,0.00035616,2]
[358972312,1745596252322,-852.52,0.00035616,2]
[358972315,1745596252342,-500.0,0.00035616,2]
[358972317,1745596252355,-500.0,0.00035616,2]
[358972320,1745596252371,-500.0,0.00035616,2]
[358972322,1745596252385,-500.0,0.00035616,2]
[358972325,1745596252401,-500.0,0.00035616,2]
[358972328,1745596252416,-779.7,0.00035616,2]
[358972330,1745596252432,-500.0,0.00035616,2]
[358972333,1745596252447,-565.43063681,0.00035616,2]
[358972335,1745596252463,-500.0,0.00035616,2]
[358972338,1745596252477,-500.0,0.00035616,2]
[358972340,1745596252492,-1211.3,0.00035616,2]
[358972343,1745596252507,-500.0,0.00035616,2]
[358972346,1745596252522,-560.58,0.00035616,2]
[358972348,1745596252538,-500.0,0.00035616,2]
[358972351,1745596252553,-595.2,0.00035616,2]
[358972353,1745596252568,-500.0,0.00035616,2]
[358972356,1745596252583,-500.0,0.00035616,2]
[358972359,1745596252597,-500.0,0.00035616,2]
[358972361,1745596252614,-1185.91,0.00035616,2]
[358972364,1745596252628,-19964.24,0.00035616,2]
[358972367,1745596252652,-351.31449296,0.00035616,2]
[358972370,1745596252670,-500.0,0.00035616,2]
[358972372,1745596252686,-500.0,0.00035616,2]
[358972375,1745596252704,-1057.98,0.00035616,2]
[358972378,1745596252721,-5993.63,0.00035616,2]
[358972380,1745596252739,-500.0,0.00035616,2]
[358972383,1745596252756,-500.0,0.00035616,2]
[358972386,1745596252772,-617.06,0.00035616,2]
[358972389,1745596252788,-685.15,0.00035616,2]
[358972391,1745596252803,-500.0,0.00035616,2]
[358972394,1745596252819,-500.0,0.00035616,2]
[358972396,1745596252835,-500.0,0.00035616,2]
[358972399,1745596252850,-742.83,0.00035616,2]
[358972402,1745596252866,-500.0,0.00035616,2]
[358972405,1745596252881,-515.37061187,0.00035616,2]
[358972407,1745596252897,-500.0,0.00035616,2]
[358972410,1745596252913,-500.0,0.00035616,2]
[358972412,1745596252928,-10426.82,0.00035616,2]
[358972415,1745596252943,-575.97368434,0.00035616,2]
[358972417,1745596252959,-500.0,0.00035616,2]
[358972420,1745596252974,-500.0,0.00035616,2]
[358972423,1745596252994,-500.0,0.00035616,2]
[358972425,1745596253066,-500.0,0.00035616,2]
[358972426,1745596253105,-562.69,0.00035616,2]
[358972427,1745596253144,-500.0,0.00035616,2]
[358972428,1745596253176,-5447.89,0.00035616,2]
[358972429,1745596253217,-500.0,0.00035616,2]
[358972430,1745596253251,-500.0,0.00035616,2]
[358972431,1745596253285,-1000.0,0.00035616,2]
[358972434,1745596253309,-500.0,0.00035616,2]
[358972437,1745596253325,-500.0,0.00035616,2]
[358972439,1745596253341,-500.0,0.00035616,2]
[358972442,1745596253356,-4012.39,0.00035616,2]
[358972444,1745596253371,-500.0,0.00035616,2]
[358972447,1745596253386,-244.90465513,0.00035616,2]
[358972450,1745596253402,-1018.07,0.00035616,2]
[358972452,1745596253419,-500.0,0.00035616,2]
[358972455,1745596253434,-585.7241541,0.00035616,2]
[358972458,1745596253451,-1018.59,0.00035616,2]
[358972460,1745596253467,-500.0,0.00035616,2]
[358972463,1745596253482,-500.0,0.00035616,2]
[358972465,1745596253497,-500.0,0.00035616,2]
[358972468,1745596253513,-500.0,0.00035616,2]
[358972471,1745596253528,-500.0,0.00035616,2]
[358972473,1745596253543,-500.0,0.00035616,2]
[358972476,1745596253559,-500.0,0.00035616,2]
[358972478,1745596253575,-500.0,0.00035616,2]
[358972481,1745596253590,-500.0,0.00035616,2]
[358972484,1745596253605,-500.0,0.00035616,2]
[358972486,1745596253621,-500.0,0.00035616,2]
[358972489,1745596253637,-500.0,0.00035616,2]
[358972492,1745596253653,-500.0,0.00035616,2]
[358972494,1745596253668,-1031.92,0.00035616,2]
[358972497,1745596253685,-500.0,0.00035616,2]
[358972499,1745596253703,-871.23,0.00035616,2]
[358972502,1745596253718,-500.0,0.00035616,2]
[358972503,1745596253734,-575.2,0.00035616,2]
[358972504,1745596253749,-500.0,0.00035616,2]
[358972505,1745596253765,-500.0,0.00035616,2]
[358972506,1745596253782,-500.0,0.00035616,2]
[358972507,1745596253798,-861.61,0.00035616,2]
[358972508,1745596253813,-500.0,0.00035616,2]
[358972509,1745596253828,-520.21981107,0.00035616,2]
[358972510,1745596253842,-500.0,0.00035616,2]
[358972512,1745596253858,-776.04,0.00035616,2]
[358972515,1745596253873,-534.86789296,0.00035616,2]
[358972517,1745596253888,-500.0,0.00035616,2]
[358972520,1745596253903,-603.98678079,0.00035616,2]
[358972523,1745596253919,-500.0,0.00035616,2]
[358972525,1745596253935,-500.0,0.00035616,2]
[358972528,1745596253950,-500.0,0.00035616,2]
[358972530,1745596253965,-669.99,0.00035616,2]
[358972533,1745596253982,-500.0,0.00035616,2]
[358972536,1745596253997,-506.79673967,0.00035616,2]
[358972538,1745596254011,-500.0,0.00035616,2]
[358972541,1745596254027,-500.0,0.00035616,2]
[358972544,1745596254042,-500.0,0.00035616,2]
[358972546,1745596254058,-500.0,0.00035616,2]
[358972549,1745596254074,-500.0,0.00035616,2]
[358972551,1745596254088,-509.45105188,0.00035616,2]
[358972554,1745596254102,-24895.37965515,0.00035616,2]
[358972681,1745596255331,-329964.11034485,0.00035616,2]
[358972683,1745596255342,-500.0,0.00035616,2]
[358972685,1745596255351,-1110.62,0.00035616,2]
[358972687,1745596255361,-500.0,0.00035616,2]
[358972689,1745596255371,-500.0,0.00035616,2]
[358972691,1745596255380,-500.0,0.00035616,2]
[358972693,1745596255390,-500.0,0.00035616,2]
[358972695,1745596255399,-985.91,0.00035616,2]
[358972697,1745596255409,-547.24715166,0.00035616,2]
[358972699,1745596255418,-500.0,0.00035616,2]
[358972701,1745596255429,-500.0,0.00035616,2]
[358972703,1745596255439,-500.0,0.00035616,2]
[358972705,1745596255449,-500.0,0.00035616,2]
[358972707,1745596255458,-893.29,0.00035616,2]
[358972709,1745596255468,-500.0,0.00035616,2]
[358972712,1745596255478,-500.0,0.00035616,2]
[358972713,1745596255488,-300.0,0.00035616,30]
[358972715,1745596255497,-2245.67,0.00035616,2]
[358972718,1745596255507,-500.0,0.00035616,2]
[358972720,1745596255518,-500.0,0.00035616,2]
[358972722,1745596255527,-795.74,0.00035616,2]
[358972724,1745596255536,-626.08831798,0.00035616,2]
[358972726,1745596255546,-500.0,0.00035616,2]
[358972728,1745596255555,-1062.45,0.00035616,2]
[358972730,1745596255565,-500.0,0.00035616,2]
[358972732,1745596255574,-500.0,0.00035616,2]
[358972734,1745596255584,-500.0,0.00035616,2]
[358972736,1745596255594,-500.0,0.00035616,2]
[358972738,1745596255603,-500.0,0.00035616,2]
[358972740,1745596255612,-500.0,0.00035616,2]
[358972742,1745596255622,-500.0,0.00035616,2]
[358972744,1745596255631,-500.0,0.00035616,2]
[358972746,1745596255644,-500.0,0.00035616,2]
[358972748,1745596255654,-500.0,0.00035616,2]
[358972750,1745596255663,-500.0,0.00035616,2]
[358972752,1745596255673,-500.0,0.00035616,2]
[358972754,1745596255683,-500.0,0.00035616,2]
[358972756,1745596255696,-500.0,0.00035616,2]
[358972758,1745596255705,-500.0,0.00035616,2]
[358972760,1745596255715,-500.0,0.00035616,2]
[358972762,1745596255724,-500.0,0.00035616,2]
[358972764,1745596255734,-500.0,0.00035616,2]
[358972766,1745596255743,-513.44,0.00035616,2]
[358972768,1745596255752,-500.0,0.00035616,2]
[358972770,1745596255762,-588.55717694,0.00035616,2]
[358972772,1745596255771,-500.0,0.00035616,2]
[358972774,1745596255781,-500.0,0.00035616,2]
[358972776,1745596255791,-591.42,0.00035616,2]
[358972778,1745596255800,-1024.67,0.00035616,2]
[358972780,1745596255809,-500.0,0.00035616,2]
[358972782,1745596255819,-1970.6,0.00035616,2]
[358972784,1745596255828,-500.0,0.00035616,2]
[358972786,1745596255837,-2047.5,0.00035616,2]
[358972788,1745596255846,-500.0,0.00035616,2]
[358972790,1745596255856,-413.7578742,0.00035616,2]
[358972792,1745596255866,-554.11047569,0.00035616,2]
[358972794,1745596255876,-1067.78,0.00035616,2]
[358972796,1745596255885,-500.0,0.00035616,2]
[358972797,1745596255894,-852.47,0.00035616,2]
[358972800,1745596255903,-1529.99,0.00035616,2]